bitfinex/quotes_BTCUSD_20241208
["timestamp","ask_amount","ask_price","bid_price","bid_amount"]
[1733627307637,0.27330877,100340.0,100330.0,0.22957268]
[1733627308655,0.27030877,100340.0,100330.0,0.20657268]
[1733627309075,0.27330877,100340.0,100330.0,0.20657268]
[1733627311454,0.27330877,100340.0,100330.0,0.20077242]
[1733627311676,0.27330877,100340.0,100330.0,0.2067532]
[1733627316845,0.32330877,100340.0,100330.0,0.2067532]
[1733627318544,0.27330877,100340.0,100330.0,0.2067532]
[1733627319973,0.27330877,100340.0,100330.0,0.2297532]
[1733627320411,0.14820877,100340.0,100330.0,0.2297532]
[1733627320627,0.14945462,100340.0,100330.0,0.2297532]
[1733627320837,0.14820877,100340.0,100330.0,0.2297532]
[1733627321481,0.14420877,100340.0,100330.0,0.2297532]
[1733627321693,0.14120877,100340.0,100330.0,0.2297532]
[1733627321911,0.14620877,100340.0,100330.0,0.2297532]
[1733627322118,0.14220877,100340.0,100330.0,0.2297532]
[1733627323042,0.14220877,100340.0,100330.0,0.32978271]
[1733627323442,0.14420877,100340.0,100330.0,0.32978271]
[1733627325005,0.14545458,100340.0,100330.0,0.32978271]
[1733627326338,0.00468377,100340.0,100330.0,0.46932171]
[1733627327270,0.14420877,100340.0,100330.0,0.46932171]
[1733627328671,0.14320877,100340.0,100330.0,0.46932171]
[1733627329044,0.14420877,100340.0,100330.0,0.46932171]
[1733627329546,0.14320877,100340.0,100330.0,0.46932171]
[1733627329714,0.14120877,100340.0,100330.0,0.47032171]
[1733627329953,0.14120877,100340.0,100330.0,0.33278271]
[1733627330177,0.14245457,100340.0,100330.0,0.33278271]
[1733627336902,0.14245457,100340.0,100330.0,0.2327532]
[1733627336903,0.22265457,100340.0,100330.0,0.2327532]
[1733627337107,0.3259588,100340.0,100330.0,0.2097532]
[1733627337743,0.27000877,100340.0,100330.0,0.2097532]
[1733627338397,0.27000877,100340.0,100330.0,0.2077532]
[1733627338615,0.27200877,100340.0,100330.0,0.2067532]
[1733627338842,0.27300877,100340.0,100330.0,0.2067532]
[1733627339242,0.27200877,100340.0,100330.0,0.2067532]
[1733627339593,0.27300877,100340.0,100330.0,0.2067532]
[1733627340003,0.31800877,100340.0,100330.0,0.2297532]
[1733627340206,0.04968377,100340.0,100330.0,0.46932171]
[1733627340672,0.04968377,100340.0,100330.0,0.5444741]
[1733627341277,0.14420877,100340.0,100330.0,0.46932171]
[1733627341635,0.14545458,100340.0,100330.0,0.46932171]
[1733627342601,0.14545458,100340.0,100330.0,0.32978271]
[1733627343679,0.22565458,100340.0,100330.0,0.2297532]
[1733627343888,0.27300877,100340.0,100330.0,0.2297532]
[1733627349834,0.27300877,100340.0,100330.0,0.2067532]
[1733627350630,0.34307546,100340.0,100330.0,0.2067532]
[1733627350848,0.27300877,100340.0,100330.0,0.2067532]
[1733627351058,0.36252224,100340.0,100330.0,0.2067532]
[1733627352325,0.54679244,100340.0,100330.0,0.2067532]
[1733627352535,0.41252224,100340.0,100330.0,0.2067532]
[1733627353165,0.54679244,100340.0,100330.0,0.2067532]
[1733627359889,0.5467828,100340.0,100330.0,0.2067532]
[1733627364086,0.32300877,100340.0,100330.0,0.2067532]
[1733627364418,0.41251838,100340.0,100330.0,0.2067532]
[1733627368435,0.32300877,100340.0,100330.0,0.2067532]
[1733627370030,0.4124918,100340.0,100330.0,0.2067532]
[1733627371062,0.3624918,100340.0,100330.0,0.2297532]
[1733627371337,0.14420877,100340.0,100330.0,0.2297532]
[1733627371572,0.14545466,100340.0,100330.0,0.2297532]
[1733627373507,0.14420877,100340.0,100330.0,0.2297532]
[1733627374158,0.14420877,100340.0,100330.0,0.30490559]
[1733627374420,0.14420877,100340.0,100330.0,0.2297532]
[1733627375690,0.2696546,100340.0,100330.0,0.2297532]
[1733627375901,0.26840877,100340.0,100330.0,0.2297532]
[1733627385001,0.26840877,100340.0,100330.0,0.2067532]
[1733627386255,0.26840877,100340.0,100330.0,0.2297532]
[1733627397984,0.14420877,100340.0,100330.0,0.2297532]
[1733627400329,0.14545461,100340.0,100330.0,0.2297532]
[1733627406408,0.22245461,100340.0,100330.0,0.2297532]
[1733627406646,0.26920877,100340.0,100330.0,0.2297532]
[1733627406868,0.26920877,100340.0,100330.0,0.2067532]
[1733627407018,0.35875581,100340.0,100330.0,0.2067532]
[1733627408300,0.35875581,100340.0,100330.0,0.2297532]
[1733627413789,1.12201531,100340.0,100330.0,0.2067532]
[1733627414008,1.07201532,100340.0,100330.0,0.2067532]
[1733627414205,0.93769475,100340.0,100330.0,0.2067532]
[1733627414811,0.93569475,100340.0,100330.0,0.2067532]
[1733627415180,0.93969475,100340.0,100330.0,0.2077532]
[1733627415381,1.15857034,100340.0,100330.0,0.2067532]
[1733627415593,1.058755,100340.0,100330.0,0.2067532]
[1733627415787,1.058755,100340.0,100330.0,0.2077532]
[1733627415788,1.117755,100340.0,100330.0,0.2077532]
[1733627415986,0.84911387,100340.0,100330.0,0.2077532]
[1733627416199,0.84411387,100340.0,100330.0,0.2077532]
[1733627416397,0.97317716,100340.0,100330.0,0.2077532]
[1733627416790,1.02817716,100340.0,100330.0,0.2077532]
[1733627417466,0.94369475,100340.0,100330.0,0.2077532]
[1733627417676,1.07786782,100340.0,100330.0,0.2077532]
[1733627418498,1.21211216,100340.0,100330.0,0.2077532]
[1733627418918,1.07786782,100340.0,100330.0,0.2077532]
[1733627419132,1.09770067,100340.0,100330.0,0.2077532]
[1733627419557,1.2319269,100340.0,100330.0,0.2077532]
[1733627419997,1.18211156,100340.0,100330.0,0.2077532]
[1733627420202,1.22159303,100340.0,100330.0,0.2077532]
[1733627420409,1.02797451,100340.0,100330.0,0.2077532]
[1733627420642,0.79894598,100340.0,100330.0,0.2077532]
[1733627420856,0.97797451,100340.0,100330.0,0.2077532]
[1733627421067,1.16218989,100340.0,100330.0,0.2077532]
[1733627421278,1.16217915,100340.0,100330.0,0.2077532]
[1733627422112,1.20650671,100340.0,100330.0,0.2077532]
[1733627422113,1.29591994,100340.0,100330.0,0.2077532]
[1733627422354,1.25159238,100340.0,100330.0,0.2077532]
[1733627422737,1.0278944,100340.0,100330.0,0.2077532]
[1733627424257,0.84893601,100340.0,100330.0,0.2077532]
[1733627429031,0.85193858,100340.0,100330.0,0.2077532]
[1733627431971,0.85193687,100340.0,100330.0,0.2077532]
[1733627432184,0.80193687,100340.0,100330.0,0.2077532]
[1733627432384,0.85193687,100340.0,100330.0,0.2077532]
[1733627433179,0.80193687,100340.0,100330.0,0.2077532]
[1733627434137,0.85193687,100340.0,100330.0,0.2077532]
[1733627434565,0.80193687,100340.0,100330.0,0.2077532]
[1733627434787,0.85193687,100340.0,100330.0,0.2077532]
[1733627436337,0.80193687,100340.0,100330.0,0.2077532]
[1733627436560,0.85193687,100340.0,100330.0,0.2077532]
[1733627436739,0.80193687,100340.0,100330.0,0.2077532]
[1733627441925,0.80193687,100340.0,100330.0,0.00784808]
[1733627445478,0.98089369,100340.0,100330.0,0.00784808]
[1733627445824,0.80193687,100340.0,100330.0,0.00784808]
[1733627446456,0.80169766,100340.0,100330.0,0.00784808]
[1733627447738,0.98065448,100340.0,100330.0,0.00784808]
[1733627448964,1.20474399,100340.0,100330.0,0.00784808]
[1733627449294,0.98090743,100340.0,100330.0,0.00784808]
[1733627449711,1.20474399,100340.0,100330.0,0.00784808]
[1733627450114,0.98090743,100340.0,100330.0,0.00784808]
[1733627450427,1.20474399,100340.0,100330.0,0.00784808]
[1733627451935,1.11520937,100340.0,100330.0,0.00784808]
[1733627452142,1.20479201,100340.0,100330.0,0.00784808]
[1733627453366,1.11520937,100340.0,100330.0,0.00784808]
[1733627453577,1.20481389,100340.0,100330.0,0.00784808]
[1733627454184,1.11520937,100340.0,100330.0,0.00784808]
[1733627456393,1.20482354,100340.0,100330.0,0.00784808]
[1733627456730,1.11520937,100340.0,100330.0,0.00784808]
[1733627456935,1.16553062,100340.0,100330.0,0.00784808]
[1733627457338,0.85186433,100340.0,100330.0,0.00784808]
[1733627457583,1.03111915,100340.0,100330.0,0.00784808]
[1733627458623,0.85186433,100340.0,100330.0,0.00784808]
[1733627458845,0.8966738,100340.0,100330.0,0.00784808]
[1733627459050,0.415439,100330.0,100320.0,3.1e-07]
[1733627459262,0.93423366,100330.0,100320.0,3.1e-07]
[1733627460389,0.94323366,100330.0,100320.0,0.00100031]
[1733627460595,0.94323366,100330.0,100320.0,3.1e-07]
[1733627460798,1.19569758,100330.0,100320.0,3.1e-07]
[1733627461010,1.30795823,100330.0,100320.0,3.1e-07]
[1733627461227,1.37273243,100330.0,100320.0,3.1e-07]
[1733627461431,1.75394289,100330.0,100320.0,3.1e-07]
[1733627462287,1.80394289,100330.0,100320.0,3.1e-07]
[1733627462541,1.75394289,100330.0,100320.0,3.1e-07]
[1733627462764,0.465453,100320.0,100310.0,0.20011469]
[1733627462963,0.83417232,100320.0,100310.0,0.20011469]
[1733627463349,1.05800702,100320.0,100310.0,0.20011469]
[1733627464119,1.06700702,100320.0,100310.0,0.20111469]
[1733627464379,0.79831721,100320.0,100310.0,0.20111469]
[1733627464507,0.90213255,100320.0,100310.0,0.20111469]
[1733627464962,0.90206631,100320.0,100310.0,0.20111469]
[1733627465158,1.08103897,100320.0,100310.0,0.20111469]
[1733627466273,0.98122363,100320.0,100310.0,0.20111469]
[1733627466450,0.98122363,100320.0,100310.0,0.20672654]
[1733627467281,1.11539345,100320.0,100310.0,0.10703654]
[1733627467680,1.11539345,100320.0,100310.0,0.00734654]
[1733627467901,1.21520879,100320.0,100310.0,0.00734654]
[1733627468108,1.11539345,100320.0,100310.0,0.00734654]
[1733627468349,1.20482269,100320.0,100310.0,0.00661185]
[1733627469181,0.98105423,100320.0,100310.0,0.00661185]
[1733627469600,1.20482269,100320.0,100310.0,0.00661185]
[1733627469797,0.98105423,100320.0,100310.0,0.00661185]
[1733627470021,1.08086957,100320.0,100310.0,0.00661185]
[1733627470382,1.30463803,100320.0,100310.0,0.00661185]
[1733627470587,1.08086957,100320.0,100310.0,0.00661185]
[1733627474141,1.08086957,100320.0,100310.0,0.00747925]
[1733627474362,0.90189691,100320.0,100310.0,0.00747925]
[1733627475018,0.90168375,100320.0,100310.0,0.00747925]
[1733627476025,1.08039247,100320.0,100310.0,0.00747925]
[1733627476224,0.90168375,100320.0,100310.0,0.00747925]
[1733627477035,0.85168375,100320.0,100310.0,0.00747925]
[1733627477257,0.90168375,100320.0,100310.0,0.00747925]
[1733627477604,1.08039247,100320.0,100310.0,0.00747925]
[1733627477845,1.30377838,100320.0,100310.0,0.00747925]
[1733627478075,1.08039247,100320.0,100310.0,0.00747925]
[1733627478590,0.90168375,100320.0,100310.0,0.00747925]
[1733627479591,0.90687004,100320.0,100310.0,0.00747925]
[1733627480009,0.8070547,100320.0,100310.0,0.00747925]
[1733627480771,0.81008644,100320.0,100310.0,0.00747925]
[1733627481814,0.31077103,100320.0,100310.0,0.00747925]
[1733627482180,0.15558474,100320.0,100310.0,0.10907925]
[1733627482381,0.15683091,100320.0,100310.0,0.10907925]
[1733627482712,0.15379917,100320.0,100310.0,0.10907925]
[1733627483163,0.30379917,100320.0,100310.0,0.10907925]
[1733627483343,0.302553,100320.0,100310.0,0.10907925]
[1733627485890,0.304288,100320.0,100310.0,0.10907925]
[1733627494777,0.30721787,100320.0,100310.0,0.10907925]
[1733627496835,0.30721787,100320.0,100310.0,0.03047925]
[1733627503523,0.58634738,100320.0,100310.0,0.00747925]
[1733627503741,0.80991061,100320.0,100310.0,0.00747925]
[1733627504620,0.9387612,100320.0,100310.0,0.00747925]
[1733627504823,0.93924948,100320.0,100310.0,0.00747925]
[1733627505278,1.16308398,100320.0,100310.0,0.00747925]
[1733627505836,1.20296157,100320.0,100310.0,0.00747925]
[1733627506402,1.16208398,100320.0,100310.0,0.00747925]
[1733627507727,0.93824948,100320.0,100310.0,0.00747925]
[1733627508004,0.75918188,100320.0,100310.0,0.00747925]
[1733627508218,0.80394878,100320.0,100310.0,0.00747925]
[1733627508973,0.82435812,100320.0,100310.0,0.00747925]
[1733627509354,0.77958229,100320.0,100310.0,0.00747925]
[1733627509575,0.95867371,100320.0,100310.0,0.00747925]
[1733627510029,1.04822929,100320.0,100310.0,0.00747925]
[1733627510231,0.95867194,100320.0,100310.0,0.00747925]
[1733627510905,0.77958229,100320.0,100310.0,0.00747925]
[1733627511107,1.04822929,100320.0,100310.0,0.00747925]
[1733627511310,0.95867786,100320.0,100310.0,0.00747925]
[1733627511621,1.00867786,100320.0,100310.0,0.00747925]
[1733627511852,1.21217043,100320.0,100310.0,0.00747925]
[1733627512024,1.11214092,100320.0,100310.0,0.00747925]
[1733627512229,0.38007418,100320.0,100310.0,0.03047925]
[1733627512415,0.15621787,100320.0,100310.0,0.03047925]
[1733627512613,0.15746405,100320.0,100310.0,0.03047925]
[1733627513966,0.30746405,100320.0,100310.0,0.03047925]
[1733627514216,0.30621787,100320.0,100310.0,0.03047925]
[1733627519804,0.39575488,100320.0,100310.0,0.03047925]
[1733627520005,0.30621787,100320.0,100310.0,0.03047925]
[1733627520214,0.303288,100320.0,100310.0,0.03047925]
[1733627522155,0.303288,100320.0,100310.0,0.11007925]
[1733627527046,0.303288,100320.0,100310.0,0.03047925]
[1733627528816,0.65393053,100320.0,100310.0,0.03047925]
[1733627529167,0.83300456,100320.0,100310.0,0.03047925]
[1733627531464,1.0568471,100320.0,100310.0,0.03047925]
[1733627533075,1.1173396,100320.0,100310.0,0.00747925]
[1733627533674,1.21715494,100320.0,100310.0,0.00747925]
[1733627533807,0.85377539,100320.0,100310.0,2.5e-07]
[1733627534026,0.8985439,100320.0,100310.0,0.00523706]
[1733627534824,0.79872856,100320.0,100310.0,0.00523706]
[1733627535071,1.02271264,100320.0,100310.0,0.00523706]
[1733627535279,0.80410159,100320.0,100310.0,0.00523706]
[1733627535447,0.82397978,100320.0,100310.0,0.00523706]
[1733627536083,0.98327279,100320.0,100310.0,0.00523706]
[1733627536297,1.11764748,100320.0,100310.0,0.00523706]
[1733627536525,1.15722665,100320.0,100310.0,0.00523706]
[1733627537519,1.05719714,100320.0,100310.0,0.02823706]
[1733627537909,0.83318589,100320.0,100310.0,0.02823706]
[1733627543322,1.05712916,100320.0,100310.0,0.02823706]
[1733627543591,0.83318589,100320.0,100310.0,0.02823706]
[1733627545098,0.9832154,100320.0,100310.0,0.00523706]
[1733627545316,1.08303074,100320.0,100310.0,0.00523706]
[1733627545519,1.2173967,100320.0,100310.0,0.00523706]
[1733627545728,1.21740905,100320.0,100310.0,0.00523706]
[1733627545930,1.08303074,100320.0,100310.0,0.00523706]
[1733627547832,1.08304638,100320.0,100310.0,0.00523706]
[1733627548649,1.3069943,100320.0,100310.0,0.00523706]
[1733627549175,1.11760033,100320.0,100310.0,0.00523706]
[1733627549312,1.20717623,100320.0,100310.0,0.00523706]
[1733627550172,1.11760033,100320.0,100310.0,0.00523706]
[1733627550437,1.20717641,100320.0,100310.0,0.00523706]
[1733627553056,1.11760033,100320.0,100310.0,0.00523706]
[1733627553238,1.21741567,100320.0,100310.0,0.00523706]
[1733627553410,1.11760033,100320.0,100310.0,0.00523706]
[1733627554397,0.98323104,100320.0,100310.0,0.00523706]
[1733627554594,1.11761336,100320.0,100310.0,0.00523706]
[1733627555256,0.98323104,100320.0,100310.0,0.00523706]
[1733627555474,1.11762406,100320.0,100310.0,0.00523706]
[1733627555694,0.98323104,100320.0,100310.0,0.00523706]
[1733627556799,1.08304638,100320.0,100310.0,0.00523706]
[1733627557009,1.08308774,100320.0,100310.0,0.00523706]
[1733627557667,0.90388481,100320.0,100310.0,0.00523706]
[1733627558329,0.8986752,100320.0,100310.0,6e-08]
[1733627558551,0.79885986,100320.0,100310.0,5e-07]
[1733627558824,0.79885986,100320.0,100310.0,8.7e-07]
[1733627559045,0.79885986,100320.0,100310.0,6.8e-07]
[1733627559264,0.79885986,100320.0,100310.0,8.8e-07]
[1733627559491,0.79885986,100320.0,100310.0,8e-08]
[1733627559734,0.79885986,100320.0,100310.0,4.8e-07]
[1733627559957,0.79885986,100320.0,100310.0,9.8e-07]
[1733627560171,0.79885986,100320.0,100310.0,7.8e-07]
[1733627560378,0.420767,100310.0,100300.0,0.000867]
[1733627560581,1.05838688,100310.0,100300.0,0.000867]
[1733627561742,1.06138688,100310.0,100300.0,0.000867]
[1733627562569,1.06838688,100310.0,100300.0,0.001867]
[1733627563661,1.15796954,100310.0,100300.0,0.001867]
[1733627565246,1.16784422,100310.0,100300.0,0.001867]
[1733627567597,1.18767058,100310.0,100300.0,0.001867]
[1733627568532,1.28748592,100310.0,100300.0,0.001867]
[1733627569156,1.28750953,100310.0,100300.0,0.001867]
[1733627571193,1.18769419,100310.0,100300.0,0.001867]
[1733627572622,1.18787711,100310.0,100300.0,0.001867]
[1733627574278,1.09827047,100310.0,100300.0,0.001867]
[1733627576369,1.09831239,100310.0,100300.0,0.001867]
[1733627577380,0.9638605,100310.0,100300.0,0.001867]
[1733627577580,0.96398844,100310.0,100300.0,0.001867]
[1733627577918,1.06380378,100310.0,100300.0,0.001867]
[1733627578127,1.05960378,100310.0,100300.0,0.001867]
[1733627578336,0.88033363,100310.0,100300.0,0.001867]
[1733627580524,0.92515117,100310.0,100300.0,0.001867]
[1733627581824,0.82533583,100310.0,100300.0,0.001867]
[1733627582024,1.04940765,100310.0,100300.0,0.001867]
[1733627582476,0.82533583,100310.0,100300.0,0.001867]
[1733627582702,1.04939238,100310.0,100300.0,0.001867]
[1733627583153,0.82533583,100310.0,100300.0,0.00454277]
[1733627583357,0.82533583,100310.0,100300.0,0.001867]
[1733627583560,1.04937854,100310.0,100300.0,0.001867]
[1733627584645,0.82533583,100310.0,100300.0,0.001867]
[1733627584862,1.04937336,100310.0,100300.0,0.001867]
[1733627585534,1.04937336,100310.0,100300.0,0.00454728]
[1733627585738,1.04937336,100310.0,100300.0,0.001867]
[1733627585947,1.04930128,100310.0,100300.0,0.00454728]
[1733627586151,1.04930128,100310.0,100300.0,0.001867]
[1733627586369,1.04930128,100310.0,100300.0,0.00454728]
[1733627586611,1.04930128,100310.0,100300.0,0.001867]
[1733627586816,1.04930128,100310.0,100300.0,0.00454728]
[1733627587029,1.05103628,100310.0,100300.0,0.001867]
[1733627587242,1.05103628,100310.0,100300.0,0.00454728]
[1733627587458,1.05103628,100310.0,100300.0,0.001867]
[1733627587673,1.05103628,100310.0,100300.0,0.00454728]
[1733627587932,1.05103628,100310.0,100300.0,0.001867]
[1733627588150,1.05103628,100310.0,100300.0,0.00454728]
[1733627588364,1.05103628,100310.0,100300.0,0.001867]
[1733627588578,1.15085162,100310.0,100300.0,0.00454728]
[1733627588995,1.05103628,100310.0,100300.0,0.00454728]
[1733627589438,1.06664238,100310.0,100300.0,0.00454728]
[1733627591002,0.5737717,100310.0,100300.0,0.00454728]
[1733627591208,1.06668524,100310.0,100300.0,0.00454728]
[1733627595582,1.11668524,100310.0,100300.0,0.00454728]
[1733627595787,1.01453274,100310.0,100300.0,0.00454728]
[1733627595993,0.47681229,100310.0,100300.0,0.00454728]
[1733627596172,1.01452425,100310.0,100300.0,0.00454728]
[1733627601877,0.98854425,100310.0,100300.0,0.00454728]
[1733627602739,0.93854425,100310.0,100300.0,0.00454728]
[1733627610200,0.7144976,100310.0,100300.0,0.00454728]
[1733627611542,0.93854425,100310.0,100300.0,0.00454728]
[1733627612288,0.7144976,100310.0,100300.0,0.00454728]
[1733627613811,0.93854425,100310.0,100300.0,0.00454728]
[1733627613978,0.7144976,100310.0,100300.0,0.00454728]
[1733627614179,0.94259016,100310.0,100300.0,0.00454728]
[1733627614383,0.80816217,100310.0,100300.0,0.00454728]
[1733627616067,1.35396217,100310.0,100300.0,0.00454728]
[1733627616483,1.35396217,100310.0,100300.0,1.9e-07]
[1733627616682,0.1781,100290.0,100280.0,0.2008673]
[1733627616860,0.65736177,100290.0,100280.0,0.2008673]
[1733627617705,0.97109218,100290.0,100280.0,0.2008673]
[1733627617924,1.19518533,100290.0,100280.0,0.2008673]
[1733627618330,0.97109218,100290.0,100280.0,0.2008673]
[1733627618506,0.97109218,100290.0,100280.0,0.2038673]
[1733627621816,0.99126094,100290.0,100280.0,0.2038673]
[1733627622494,1.0013012,100290.0,100280.0,0.2038673]
[1733627623419,0.82202668,100290.0,100280.0,0.2038673]
[1733627624973,0.68757079,100290.0,100280.0,0.2038673]
[1733627625167,0.82202668,100290.0,100280.0,0.2038673]
[1733627626202,0.68757079,100290.0,100280.0,0.2038673]
[1733627626581,0.82202668,100290.0,100280.0,0.2038673]
[1733627628799,0.68757079,100290.0,100280.0,0.2038673]
[1733627629009,0.82202668,100290.0,100280.0,0.2038673]
[1733627629447,0.82182421,100290.0,100280.0,0.2038673]
[1733627630422,0.6874898,100290.0,100280.0,0.2038673]
[1733627630828,0.68748507,100290.0,100280.0,0.2038673]
[1733627631482,0.82181239,100290.0,100280.0,0.2038673]
[1733627631704,0.68748507,100290.0,100280.0,0.2038673]
[1733627631941,0.69044817,100290.0,100280.0,0.2038673]
[1733627632865,0.82477549,100290.0,100280.0,0.2038673]
[1733627633829,1.00387858,100290.0,100280.0,0.2038673]
[1733627634238,1.08927513,100290.0,100280.0,0.2038673]
[1733627634511,1.26315399,100290.0,100280.0,0.2038673]
[1733627634735,1.17360245,100290.0,100280.0,0.2038673]
[1733627634967,1.03927513,100290.0,100280.0,0.2018673]
[1733627635180,1.03927513,100290.0,100280.0,0.0008673]
[1733627635380,1.17654034,100290.0,100280.0,0.0008673]
[1733627635582,1.18454034,100290.0,100280.0,0.0018673]
[1733627635806,1.05027513,100290.0,100280.0,0.0018673]
[1733627636326,1.18452204,100290.0,100280.0,0.0018673]
[1733627636538,1.18152204,100290.0,100280.0,0.0018673]
[1733627636965,1.18452204,100290.0,100280.0,0.0018673]
[1733627639334,1.27396977,100290.0,100280.0,0.0018673]
[1733627640015,1.81976977,100290.0,100280.0,0.0018673]
[1733627640254,1.73032204,100290.0,100280.0,0.0018673]
[1733627640700,1.72962875,100290.0,100280.0,0.0018673]
[1733627642074,1.59549486,100290.0,100280.0,0.0018673]
[1733627642299,1.7295965,100290.0,100280.0,0.0018673]
[1733627643858,1.59543587,100290.0,100280.0,3e-07]
[1733627644083,1.41664967,100290.0,100280.0,3e-07]
[1733627644530,1.68491746,100290.0,100280.0,3e-07]
[1733627646335,1.41664967,100290.0,100280.0,3e-07]
[1733627646542,1.68491746,100290.0,100280.0,3e-07]
[1733627647315,1.41664967,100290.0,100280.0,3e-07]
[1733627648230,0.2761,100270.0,100260.0,0.1210748]
[1733627648453,0.73908001,100270.0,100260.0,0.0612308]
[1733627648654,0.28965,100250.0,100240.0,0.0788]
[1733627649513,0.28965,100250.0,100240.0,0.07937502]
[1733627649939,0.28965,100250.0,100240.0,0.10237502]
[1733627650396,0.28965,100250.0,100240.0,0.10437502]
[1733627651698,0.28965,100250.0,100240.0,0.10637502]
[1733627652104,0.2995808,100250.0,100240.0,0.10637502]
[1733627655274,0.2995808,100250.0,100240.0,0.10724232]
[1733627658718,0.2995808,100250.0,100240.0,0.02844232]
[1733627661318,0.2995808,100250.0,100240.0,0.00544232]
[1733627661970,0.62311442,100250.0,100240.0,0.00544232]
[1733627662792,0.67001442,100250.0,100240.0,0.00544232]
[1733627663293,0.57831031,100250.0,100240.0,0.00544232]
[1733627663513,0.57831031,100250.0,100240.0,0.00344232]
[1733627663946,0.57831031,100250.0,100240.0,0.00144232]
[1733627664159,0.58132253,100250.0,100240.0,0.00144232]
[1733627664377,0.58432253,100250.0,100240.0,0.00144232]
[1733627665000,0.63413787,100250.0,100240.0,0.00144232]
[1733627665779,0.53432253,100250.0,100240.0,0.00144232]
[1733627667017,1.08012253,100250.0,100240.0,0.00144232]
[1733627672214,0.420578,100230.0,100220.0,0.10743196]
[1733627672429,0.57060751,100230.0,100210.0,0.0008672]
[1733627672659,0.52236922,100220.0,100210.0,0.0008672]
[1733627672884,0.52112151,100220.0,100210.0,0.0008672]
[1733627673813,0.289692,100220.0,100210.0,0.0008672]
[1733627674035,0.289692,100220.0,100210.0,0.0238672]
[1733627674285,0.29973874,100220.0,100210.0,0.0238672]
[1733627674744,0.30873874,100220.0,100210.0,0.0238672]
[1733627675206,0.31273874,100220.0,100210.0,0.0238672]
[1733627675912,0.30873874,100220.0,100210.0,0.0238672]
[1733627676347,0.31273874,100220.0,100210.0,0.0238672]
[1733627676791,0.29973874,100220.0,100210.0,0.0238672]
[1733627677255,0.30873874,100220.0,100210.0,0.0238672]
[1733627677482,0.29973874,100220.0,100210.0,0.0238672]
[1733627677713,0.30673874,100220.0,100210.0,0.0238672]
[1733627678167,0.30873874,100220.0,100210.0,0.0238672]
[1733627685481,0.31167334,100220.0,100210.0,0.0238672]
[1733627685598,0.30873874,100220.0,100210.0,0.0988672]
[1733627686175,0.298692,100220.0,100210.0,0.0988672]
[1733627686365,1.07542151,100220.0,100210.0,0.0008672]
[1733627687002,1.16465797,100220.0,100210.0,2e-07]
[1733627687212,1.47698558,100220.0,100210.0,2e-07]
[1733627687426,1.29851266,100220.0,100210.0,2e-07]
[1733627688724,1.29838536,100220.0,100210.0,2e-07]
[1733627689580,1.29838536,100220.0,100190.0,0.2008674]
[1733627689581,0.42062,100200.0,100190.0,8.8e-07]
[1733627689801,0.52064951,100200.0,100190.0,8.8e-07]
[1733627690248,0.339748,100180.0,100170.0,0.0008682]
[1733627690462,0.52117751,100180.0,100170.0,0.0008682]
[1733627691584,0.52117751,100180.0,100170.0,0.0010408]
[1733627691796,0.52317751,100180.0,100170.0,0.0010408]
[1733627692007,0.53017751,100180.0,100170.0,0.0010408]
[1733627695206,0.5401076,100180.0,100170.0,0.0010408]
[1733627696598,0.30867809,100180.0,100170.0,0.0010408]
[1733627696804,0.298748,100180.0,100170.0,0.0010408]
[1733627697006,0.045,100170.0,100160.0,0.4254738]
[1733627697259,0.045,100170.0,100160.0,0.52607893]
[1733627697451,0.045,100170.0,100160.0,0.72607893]
[1733627698267,0.047,100170.0,100160.0,0.72607893]
[1733627698937,0.047,100170.0,100160.0,0.72907893]
[1733627700039,0.047,100170.0,100160.0,0.73007893]
[1733627700671,0.047,100170.0,100160.0,0.73094703]
[1733627701242,0.002,100170.0,100160.0,0.73094703]
[1733627701477,0.002,100170.0,100160.0,0.78094703]
[1733627701686,0.002,100170.0,100160.0,0.89579445]
[1733627701916,0.045,100190.0,100180.0,0.240348]
[1733627702116,0.045,100190.0,100180.0,0.34037751]
[1733627703857,0.048,100190.0,100180.0,0.34037751]
[1733627704264,0.045,100190.0,100180.0,0.34037751]
[1733627704601,0.048,100190.0,100180.0,0.34037751]
[1733627705651,0.048,100190.0,100180.0,0.38667751]
[1733627705858,0.003,100190.0,100180.0,0.38667751]
[1733627706063,0.045,100200.0,100190.0,0.162734]
[1733627706301,0.045,100200.0,100190.0,0.26276351]
[1733627707452,0.047,100200.0,100190.0,0.26276351]
[1733627708908,0.002,100200.0,100190.0,0.46276351]
[1733627709063,0.047,100200.0,100190.0,0.46276351]
[1733627709256,0.002,100200.0,100190.0,0.46276351]
[1733627709463,0.047,100200.0,100190.0,0.46276351]
[1733627712431,0.048737,100200.0,100190.0,0.46276351]
[1733627713080,0.126337,100200.0,100190.0,0.46276351]
[1733627713283,0.221057,100200.0,100190.0,0.223]
[1733627714195,0.219057,100200.0,100190.0,0.223]
[1733627714722,0.222057,100200.0,100190.0,0.223]
[1733627719312,0.267457,100200.0,100190.0,0.223]
[1733627724683,0.27725984,100200.0,100190.0,0.223]
[1733627730263,0.27725984,100200.0,100190.0,0.2]
[1733627730695,0.42725984,100200.0,100190.0,0.2]
[1733627734909,0.045,100180.0,100170.0,0.1906175]
[1733627735173,0.045,100180.0,100170.0,0.31364701]
[1733627735391,0.045,100180.0,100170.0,0.51364701]
[1733627736082,0.045,100180.0,100170.0,0.51764701]
[1733627736301,0.045,100180.0,100170.0,0.52264701]
[1733627736522,0.046,100180.0,100170.0,0.52264701]
[1733627737198,0.046,100180.0,100170.0,0.47264701]
[1733627740330,0.046,100180.0,100170.0,0.56219367]
[1733627740579,0.046,100180.0,100170.0,0.47264701]
[1733627741221,0.046,100180.0,100170.0,0.56219367]
[1733627741433,0.185748,100180.0,100170.0,0.56219367]
[1733627741652,0.185748,100180.0,100170.0,0.56225267]
[1733627742344,0.185748,100180.0,100170.0,0.82756217]
[1733627742777,0.185748,100180.0,100170.0,1.02756217]
[1733627744541,0.046,100180.0,100170.0,1.02756217]
[1733627747019,0.187948,100180.0,100170.0,0.76478366]
[1733627747262,0.26839582,100180.0,100170.0,0.2098685]
[1733627747473,0.267148,100180.0,100170.0,0.2098685]
[1733627748369,0.267148,100180.0,100170.0,0.2328685]
[1733627748808,0.268885,100180.0,100170.0,0.2328685]
[1733627752570,0.27908018,100180.0,100170.0,0.2328685]
[1733627758445,0.5128861,100180.0,100170.0,0.2098685]
[1733627758878,0.42908018,100180.0,100170.0,0.2098685]
[1733627759343,0.42808018,100180.0,100170.0,0.0008685]
[1733627759558,0.43108018,100180.0,100170.0,0.0008685]
[1733627759975,0.42808018,100180.0,100170.0,0.0008685]
[1733627760211,0.43108018,100180.0,100170.0,0.0008685]
[1733627772022,0.43404699,100180.0,100170.0,0.0008685]
[1733627786338,0.52361217,100180.0,100170.0,0.0008685]
[1733627790533,0.65795995,100180.0,100170.0,0.0008685]
[1733627791213,0.67842027,100180.0,100170.0,0.0008685]
[1733627792592,0.85755064,100180.0,100170.0,0.0008685]
[1733627793024,0.95758015,100180.0,100170.0,0.0008685]